bitfinex-derivatives/quotes_ETHF0:USTF0_20250926
["timestamp","ask_amount","ask_price","bid_price","bid_amount"]
[1758881010490,0.7637,3903.6,3903.5,0.4493]
[1758881010698,0.7637,3903.6,3903.5,0.7113]
[1758881011095,0.67348,3903.3,3903.2,0.215]
[1758881011395,0.5548,3903.3,3903.2,1.0191]
[1758881011598,0.3421,3903.5,3903.4,0.7571]
[1758881012091,0.3421,3903.7,3903.4,0.90056]
[1758881012291,0.5548,3903.7,3903.6,0.7571]
[1758881012492,0.5548,3903.7,3903.6,1.0191]
[1758881012995,0.3421,3904.1,3904.0,0.4398]
[1758881013195,0.7667,3904.1,3904.0,0.7018]
[1758881013390,1.22743,3903.8,3903.7,0.4398]
[1758881013698,1.22743,3903.8,3903.7,0.477]
[1758881014099,1.22743,3903.8,3903.7,0.4762]
[1758881014992,0.7667,3903.8,3903.7,0.701]
[1758881015403,0.7667,3903.8,3903.7,0.262]
[1758881015898,0.7667,3903.8,3903.7,0.477]
[1758881016093,0.7667,3903.8,3903.7,1.0191]
[1758881017001,0.7667,3903.8,3903.7,0.7018]
[1758881017202,0.7667,3903.8,3903.7,0.477]
[1758881017391,0.7667,3903.8,3903.7,0.262]
[1758881017794,0.7667,3903.8,3903.7,0.477]
[1758881018706,0.7667,3903.8,3903.7,0.7018]
[1758881019100,0.7667,3903.8,3903.7,1.0191]
[1758881020901,0.1379,3904.0,3903.9,0.215]
[1758881021101,0.5548,3904.0,3903.9,0.7571]
[1758881021312,0.9046,3904.0,3903.9,0.4398]
[1758881021804,0.7667,3903.7,3903.6,0.67573]
[1758881022000,0.7667,3903.7,3903.6,1.16253]
[1758881022306,0.46074,3903.6,3903.3,0.46077]
[1758881022609,0.7667,3903.4,3903.3,0.90057]
[1758881022909,0.4246,3903.4,3903.3,0.262]
[1758881023100,0.7667,3903.4,3903.3,0.477]
[1758881023405,0.7667,3903.4,3903.3,0.215]
[1758881023601,0.7667,3903.4,3903.3,0.477]
[1758881023995,0.9046,3903.0,3902.9,0.0256223]
[1758881024502,5.9046,3903.0,3902.9,0.2876223]
[1758881026299,0.5548,3901.9,3901.8,0.4398]
[1758881026605,0.7667,3901.9,3901.8,0.215]
[1758881026805,0.7667,3901.9,3901.8,0.262]
[1758881027007,0.4246,3901.6,3901.2,0.91742585]
[1758881027206,0.3421,3900.9,3900.7,0.46108]
[1758881027504,0.7667,3900.9,3900.8,0.477]
[1758881027695,0.7667,3900.9,3900.8,0.7018]
[1758881027899,0.1379,3901.5,3900.9,0.3173]
[1758881028098,0.7667,3901.4,3901.3,0.215]
[1758881028300,0.7667,3901.4,3901.3,0.477]
[1758881029114,0.7667,3901.4,3901.3,0.4762]
[1758881029303,0.7667,3901.4,3901.3,1.0183]
[1758881030409,0.5548,3901.4,3901.3,1.0183]
[1758881030809,0.3421,3901.9,3901.8,0.215]
[1758881031016,0.7667,3901.9,3901.8,0.477]
[1758881031209,0.7667,3901.9,3901.8,0.7018]
[1758881031518,0.7667,3901.9,3901.8,0.477]
[1758881031706,0.7667,3901.9,3901.8,0.262]
[1758881033312,0.1379,3901.5,3900.8,40.43007]
[1758881033504,0.1379,3901.5,3900.8,40.74737]
[1758881033505,0.5548,3900.9,3900.8,40.74737]
[1758881033705,0.2127,3901.1,3901.0,0.67605]
[1758881034012,0.2127,3901.1,3901.0,1.21815]
[1758881034213,0.7667,3901.4,3901.3,0.7571]
[1758881034414,0.7667,3901.4,3901.3,1.0191]
[1758881034912,1.01576,3901.8,3901.7,0.4398]
[1758881035216,0.7667,3901.8,3901.7,0.7571]
[1758881036019,0.7667,3901.8,3901.7,1.21807]
[1758881036318,0.5548,3902.0,3901.9,1.21804]
[1758881036516,0.5548,3902.0,3901.9,1.0191]
[1758881036813,0.9046,3902.0,3901.9,0.7018]
[1758881037018,0.2127,3902.0,3901.9,1.0191]
[1758881037814,0.7667,3902.0,3901.9,1.0191]
[1758881038216,0.5548,3902.0,3901.9,1.0191]
[1758881038614,0.9046,3902.0,3901.9,0.7018]
[1758881038815,0.9046,3902.0,3901.9,0.477]
[1758881039315,0.9046,3902.0,3901.9,0.7018]
[1758881039516,0.9046,3902.0,3901.9,1.0191]
[1758881039715,0.5548,3902.0,3901.9,1.0191]
[1758881040018,0.3421,3902.3,3902.2,1.21801]
[1758881040214,0.3421,3902.3,3902.2,1.48001]
[1758881040215,0.5548,3902.3,3902.2,1.48001]
[1758881040519,0.5548,3902.3,3902.2,1.0191]
[1758881040713,0.7667,3902.3,3902.2,0.7018]
[1758881040913,0.7667,3902.3,3902.2,1.0481]
[1758881041313,0.7667,3902.3,3902.2,0.7018]
[1758881041507,0.7667,3902.3,3902.2,0.4398]
[1758881041721,0.7667,3902.3,3902.2,1.0481]
[1758881042419,10.12099991,3903.4,3902.3,0.3463]
[1758881042420,0.46085,3902.7,3902.3,0.3463]
[1758881042613,0.5432,3902.8,3902.7,0.7977]
[1758881042815,0.2155,3902.8,3902.7,1.0597]
[1758881043017,0.7762,3902.8,3902.7,1.0597]
[1758881043317,0.7762,3902.8,3902.7,0.4846]
[1758881043714,0.7762,3902.8,3902.0,0.1179]
[1758881043715,0.233,3902.3,3902.2,0.4514]
[1758881043906,0.7762,3902.3,3902.2,1.0597]
[1758881044315,0.5432,3902.3,3902.2,1.0597]
[1758881044525,0.7762,3902.8,3902.7,0.4514]
[1758881044715,0.7762,3902.8,3902.7,0.262]
[1758881045312,0.90934,3902.8,3902.0,0.1179]
[1758881045514,0.90934,3902.8,3902.4,0.3448]
[1758881045713,0.90934,3902.8,3902.1,0.262]
[1758881045714,0.2165,3902.1,3902.0,1.26713]
[1758881045922,0.7603,3902.1,3902.0,0.4614]
[1758881046123,0.7603,3902.1,3902.0,0.262]
[1758881046826,0.7603,3902.1,3902.0,0.4942]
[1758881047616,0.7603,3902.1,3902.0,0.262]
[1758881047922,0.7603,3902.1,3902.0,0.4942]
[1758881048812,0.7603,3902.1,3902.0,0.7234]
[1758881049121,0.7603,3902.1,3902.0,0.4942]
[1758881049526,0.7603,3902.1,3902.0,0.7234]
[1758881049823,0.7603,3902.1,3902.0,0.4614]
[1758881050023,0.7603,3902.1,3902.0,0.7234]
[1758881050321,0.7603,3902.1,3902.0,0.8062]
[1758881050624,0.7603,3902.1,3902.0,1.0682]
[1758881050825,0.5341,3902.2,3902.1,0.8062]
[1758881051024,0.5341,3902.2,3902.1,1.26711]
[1758881051219,0.3176,3902.7,3902.5,0.3448]
[1758881051525,0.3176,3902.7,3902.6,0.4942]
[1758881051526,0.7603,3902.7,3902.6,0.4942]
[1758881052825,0.7603,3902.7,3902.6,1.0682]
[1758881054022,0.7603,3902.7,3902.6,0.7234]
[1758881054221,0.4427,3902.7,3902.5,0.46087]
[1758881054416,0.7603,3902.6,3902.5,0.2322]
[1758881054625,0.7603,3902.6,3902.5,1.0682]
[1758881056026,0.7603,3902.6,3902.5,0.7234]
[1758881056825,0.7603,3902.6,3902.5,0.4942]
[1758881057021,0.7603,3902.6,3902.2,0.3448]
[1758881057323,0.7603,3902.6,3902.1,0.69311]
[1758881057324,0.7603,3902.2,3902.1,0.69311]
[1758881057529,0.7603,3902.2,3902.1,0.95511]
[1758881057731,0.7603,3902.2,3902.1,1.18431]
[1758881057928,0.7603,3902.2,3902.1,1.52911]
[1758881058427,0.5341,3902.2,3902.1,1.52911]
[1758881059517,0.1322,3902.5,3902.4,0.46088]
[1758881059721,0.67734,3902.8,3902.7,0.46084]
[1758881059925,0.4427,3902.8,3902.7,1.52904]
[1758881060128,0.7603,3902.8,3902.7,0.4614]
[1758881060331,0.7603,3902.8,3902.7,0.4942]
[1758881060628,0.7603,3902.8,3902.7,0.262]
[1758881061022,0.7603,3902.7,3902.6,0.2322]
[1758881061223,0.7603,3902.7,3902.6,0.4942]
[1758881061224,1.22115,3902.7,3902.6,0.4942]
[1758881061735,0.1379,3903.0,3902.4,0.2322]
[1758881061736,0.81928,3902.5,3902.4,0.2322]
[1758881061924,0.7603,3902.3,3902.2,0.6931]
[1758881062125,0.7603,3902.3,3902.2,1.1843]
[1758881062328,0.7603,3902.3,3902.2,1.0682]
[1758881062626,0.8925,3902.0,3901.9,0.2322]
[1758881062833,0.8925,3902.0,3901.9,0.4942]
[1758881063332,0.8925,3902.0,3901.9,0.2322]
[1758881063532,0.8925,3902.0,3901.9,0.4942]
[1758881065427,0.7603,3902.0,3901.9,1.0682]
[1758881065733,0.2165,3902.3,3902.2,0.46091]
[1758881065932,0.3176,3902.4,3902.2,1.18431]
[1758881066336,0.2165,3902.6,3902.3,0.3448]
[1758881066533,0.5341,3902.6,3902.5,0.4614]
[1758881066833,0.5341,3902.6,3902.5,0.8062]
[1758881068724,0.5341,3902.7,3902.6,0.8062]
[1758881068930,0.5341,3902.7,3902.6,1.0682]
[1758881069129,0.7603,3902.7,3902.6,1.0682]
[1758881070439,0.7603,3902.7,3902.6,0.4614]
[1758881070640,0.7603,3902.7,3902.6,0.7234]
[1758881070841,0.7603,3902.7,3902.6,0.2322]
[1758881071031,0.7603,3902.7,3902.6,0.262]
[1758881073938,0.2282,3901.8,3901.7,1.14942585]
[1758881074238,0.5506,3902.0,3901.9,0.7955]
[1758881074439,2.58369795,3902.5,3902.4,0.232]
[1758881074632,2.81189795,3902.5,3902.4,0.494]
[1758881075136,0.2323,3902.5,3902.4,1.0575]
[1758881075340,0.7788,3902.5,3902.4,1.0575]
[1758881076839,0.5506,3903.0,3902.9,0.7955]
[1758881077142,3.59634795,3903.5,3903.4,0.232]
[1758881077348,0.5506,3903.1,3903.0,0.7955]
[1758881077545,0.5506,3903.1,3903.0,1.0575]
[1758881077748,0.5506,3903.1,3903.0,0.7955]
[1758881077937,0.7788,3903.1,3903.0,1.0575]
[1758881078340,0.7788,3903.1,3902.6,3.1363238]
[1758881078341,0.7788,3903.1,3902.6,1.37828585]
[1758881078544,0.7788,3902.7,3902.6,0.46086]
[1758881078749,0.7788,3902.7,3902.6,0.95486]
[1758881079044,0.7788,3902.7,3902.6,0.7955]
[1758881079247,0.7788,3902.7,3902.6,1.0575]
[1758881080843,0.46075,3903.6,3903.3,0.2325]
[1758881081043,0.7788,3903.6,3903.5,0.4645]
[1758881081240,0.7788,3903.6,3903.5,0.232]
[1758881081645,0.7788,3903.6,3903.0,0.1332]
[1758881081646,0.2323,3903.0,3902.9,0.331]
[1758881081941,2.35139795,3903.5,3903.0,0.46081]
[1758881082146,0.5506,3903.4,3903.3,0.4645]
[1758881082343,0.2323,3903.4,3903.3,1.18728]
[1758881082545,0.5506,3903.4,3903.3,1.18728]
[1758881082848,0.5506,3903.4,3903.3,1.51828]
[1758881083044,0.3183,3903.9,3903.3,1.0575]
[1758881083649,0.3183,3903.6,3903.3,1.18727]
[1758881083836,0.5506,3903.5,3903.4,0.563]
[1758881084043,0.5506,3903.5,3903.4,0.7955]
[1758881084245,0.7788,3903.5,3903.4,0.7955]
[1758881084542,0.5506,3903.5,3903.4,0.7955]
[1758881084938,0.9113,3903.5,3903.4,0.4645]
[1758881085144,0.9113,3903.5,3903.3,0.262]
[1758881085648,0.593,3903.5,3903.4,0.4645]
[1758881085841,0.593,3903.5,3903.4,0.7955]
[1758881086038,0.4605,3903.5,3903.4,0.7955]
[1758881086541,0.3183,3903.7,3903.4,0.92526]
[1758881086743,0.5506,3903.7,3903.6,0.7955]
[1758881086946,0.5506,3904.0,3903.9,1.25621]
[1758881087138,0.2323,3904.0,3903.9,0.4645]
[1758881087343,0.9113,3904.0,3903.9,0.494]
[1758881087739,0.7788,3903.6,3903.5,0.7955]
[1758881088145,0.7788,3903.6,3903.5,1.0575]
[1758881088351,0.7788,3903.6,3903.5,0.7265]
[1758881088547,0.5506,3903.6,3903.5,1.51825]
[1758881088853,0.5506,3903.9,3903.8,0.7955]
[1758881089053,0.549,3903.9,3903.8,0.7955]
[1758881089453,0.2323,3903.9,3903.8,0.7955]
[1758881089650,0.593,3904.5,3904.4,0.232]
[1758881089843,1.05363,3904.5,3904.4,0.494]
[1758881090048,1.05363,3904.5,3904.4,0.262]
[1758881090547,1.05363,3904.5,3904.4,0.494]
[1758881090747,0.593,3904.5,3904.4,0.494]
[1758881090949,0.7788,3904.5,3904.4,1.0575]
[1758881091154,0.9113,3904.5,3904.4,1.0575]
[1758881091454,0.593,3904.0,3903.9,0.563]
[1758881091655,0.9113,3904.0,3903.9,0.563]
[1758881091849,0.9113,3904.0,3903.9,1.0575]
[1758881092058,0.9113,3904.0,3903.9,41.8575]
[1758881092351,0.9113,3904.0,3903.9,41.2645]
[1758881092554,0.9113,3904.0,3903.9,41.062]
[1758881093055,0.9113,3904.0,3903.9,1.0575]
[1758881093352,0.7788,3904.0,3903.9,1.0575]
[1758881093557,0.2323,3904.0,3903.9,1.0575]
[1758881093762,0.3183,3904.3,3904.0,0.46069]
[1758881094055,0.7788,3904.3,3904.2,0.7955]
[1758881095657,0.7788,3904.3,3904.2,0.4645]
[1758881096254,0.4605,3903.9,3903.8,41.131]
[1758881096555,0.7788,3903.9,3903.8,41.85372]
[1758881097151,0.7788,3903.9,3903.8,1.51822]
[1758881097354,0.2323,3904.3,3904.2,0.46067]
[1758881097551,0.5506,3904.3,3904.2,1.0575]
[1758881098459,0.7788,3904.3,3904.2,1.0575]
[1758881099552,0.2323,3904.3,3904.2,1.0575]
[1758881100658,0.316,3904.8,3904.5,0.1263]
[1758881100855,0.2223,3905.2,3905.0,0.59377]
[1758881101061,0.7676,3905.2,3905.1,0.7017]
[1758881102051,0.316,3905.2,3905.1,0.4397]
[1758881102253,0.2223,3905.2,3905.1,0.90026]
[1758881102462,0.5383,3905.2,3905.1,1.16226]
[1758881102859,0.316,3905.5,3905.1,0.7017]
[1758881103049,0.46047,3905.9,3905.5,0.46051]
[1758881103050,0.316,3905.9,3905.5,0.46051]
[1758881103246,0.7676,3905.9,3905.8,0.7648]
[1758881103856,0.5453,3905.2,3904.9,0.46058]
[1758881104055,0.2207,3904.9,3904.8,0.4397]
[1758881104262,0.5367,3904.9,3904.8,0.7017]
[1758881104463,0.766,3904.9,3904.8,0.7017]
[1758881104657,0.766,3904.9,3904.8,1.0268]
[1758881104850,0.5367,3904.9,3904.8,1.0268]
[1758881105250,0.766,3904.9,3904.8,1.0268]
[1758881105451,0.766,3904.9,3903.9,0.225]
[1758881105452,0.9174,3904.0,3903.9,0.225]
[1758881105650,0.9174,3904.0,3903.9,0.488]
[1758881106052,0.9174,3904.0,3903.9,0.7083]
[1758881106254,0.9174,3904.0,3903.9,0.4453]
[1758881106553,0.2208,3903.3,3903.2,0.4453]
[1758881106758,0.2208,3903.3,3903.2,1.0444]
[1758881106957,0.349,3903.6,3903.3,0.3371]
[1758881107256,0.5698,3903.6,3903.5,0.7824]
[1758881107958,0.2208,3903.6,3903.5,0.7824]
[1758881108361,0.2208,3903.6,3903.5,1.0454]
[1758881108758,0.349,3903.9,3903.5,0.8383]
[1758881109060,0.5698,3903.9,3903.8,0.7824]
[1758881109258,0.7829,3903.9,3903.8,0.7824]
[1758881109659,0.46075,3903.6,3903.5,0.225]
[1758881109867,0.1345,3904.0,3903.2,0.225]
[1758881109868,0.46078,3903.3,3903.2,0.225]
[1758881110056,0.89468,3903.3,3903.2,0.488]
[1758881110258,1.24368,3903.3,3903.2,0.488]
[1758881110451,0.7829,3903.3,3903.2,0.488]
[1758881110662,0.7829,3903.3,3903.2,1.0454]
[1758881111369,0.7829,3903.3,3903.2,0.7083]
[1758881111566,0.46077,3903.4,3902.9,0.225]
[1758881111567,1.37821,3903.0,3902.9,0.225]
[1758881111760,1.37821,3903.0,3902.9,0.263]
[1758881112863,1.03067,3902.5,3902.4,0.7824]
[1758881113057,0.8948,3902.3,3902.2,0.225]
[1758881113366,0.8948,3902.3,3902.2,0.263]
[1758881113566,1.2438,3902.3,3902.2,0.488]
[1758881113970,0.5698,3902.3,3902.2,1.0454]
[1758881114265,2.56661,3903.8,3902.2,1.0454]
[1758881114266,0.349,3903.2,3902.9,0.3371]
[1758881114466,0.7829,3903.1,3903.0,0.488]
[1758881114862,0.2208,3902.5,3902.4,0.7824]
[1758881115055,0.5698,3902.5,3902.4,1.0454]
[1758881115255,0.46085,3902.7,3902.4,1.50628]
[1758881115460,0.349,3902.9,3902.8,0.7824]
[1758881115664,0.349,3902.9,3902.8,1.0454]
[1758881115960,0.5698,3902.9,3902.8,1.0454]
[1758881116160,0.5698,3902.9,3902.8,0.7083]
[1758881116161,0.7829,3902.9,3902.8,0.7083]
[1758881116366,0.7829,3902.9,3902.8,0.488]
[1758881116667,1.24372,3902.9,3902.8,0.263]
[1758881116869,0.7829,3902.9,3902.8,0.263]
[1758881117568,0.7829,3902.9,3902.8,1.0454]
[1758881117870,0.7829,3902.9,3902.8,0.263]
[1758881118266,0.7829,3902.9,3902.1,0.3371]
[1758881118568,0.9174,3902.0,3901.9,0.225]
[1758881118766,0.349,3902.2,3901.8,1.24335]
[1758881118964,0.5698,3902.2,3902.1,0.225]
[1758881119268,0.5698,3902.5,3902.4,0.4453]
[1758881119469,0.7829,3902.9,3902.8,0.225]
[1758881119668,0.7829,3902.9,3902.8,0.488]
[1758881120370,0.7829,3902.9,3902.8,1.0454]
[1758881121469,0.5698,3902.9,3902.8,1.0454]
[1758881121670,0.4339,3903.3,3903.2,0.225]
[1758881121872,0.7829,3903.3,3903.2,0.488]
[1758881122276,0.7829,3903.3,3903.2,0.263]
[1758881123079,0.7829,3903.3,3903.2,1.0454]
[1758881123469,0.2208,3903.6,3903.5,0.46075]
[1758881123670,1.24354,3904.4,3904.3,0.225]
[1758881123975,0.4339,3904.0,3903.9,0.225]
[1758881124170,0.9174,3904.0,3903.9,0.263]
[1758881124570,0.9174,3904.0,3903.9,0.488]
[1758881124771,0.4835,3904.0,3903.5,0.3371]
[1758881124976,0.7829,3903.6,3903.5,0.5621]
[1758881125174,0.2208,3903.9,3903.8,0.225]
[1758881125477,0.5698,3903.9,3903.8,0.225]
[1758881125678,0.7829,3903.9,3903.8,0.225]
[1758881125982,0.2208,3903.9,3903.8,1.24311]
[1758881126183,0.2208,3904.1,3904.0,1.24308]
[1758881126371,0.349,3904.5,3904.3,0.3371]
[1758881126675,0.349,3904.5,3904.0,0.3937]
[1758881126676,0.349,3904.5,3904.4,0.7824]
[1758881126877,0.7829,3904.5,3904.4,0.225]
[1758881127183,0.2208,3903.7,3903.6,41.59783]
[1758881127473,0.5698,3903.7,3903.6,41.4001]
[1758881127778,1.03053,3903.7,3903.6,41.063]
[1758881128479,0.46078,3903.3,3903.2,0.225]
[1758881128781,0.89468,3903.3,3903.2,0.488]
[1758881128977,0.4339,3903.3,3903.2,41.6251]
[1758881129182,0.2208,3903.3,3903.2,41.6251]
[1758881129372,0.2208,3903.3,3903.2,1.0454]
[1758881129572,0.349,3903.4,3903.2,1.0454]
[1758881129880,0.5698,3903.3,3903.2,1.0454]
[1758881131879,0.349,3903.3,3903.2,1.0454]
[1758881132078,0.5479,3903.8,3903.7,0.7883]
[1758881132279,0.5479,3903.8,3903.7,1.0513]
[1758881132980,0.7771,3903.8,3903.7,1.0513]
[1758881134277,0.7771,3903.8,3903.7,0.7883]
[1758881134487,0.7771,3903.8,3903.7,1.0513]
[1758881134978,0.7771,3903.8,3903.7,0.4868]
[1758881135184,0.7771,3903.8,3903.7,0.2238]
[1758881135386,0.7771,3903.8,3903.7,0.263]
[1758881136290,0.46073,3903.7,3903.6,0.2238]
[1758881136583,0.90953,3903.7,3903.6,0.4868]
[1758881136779,1.23783,3903.7,3903.6,0.4868]
[1758881137178,1.15151,3904.8,3903.9,0.4607]
[1758881137474,1.00857,3904.2,3904.1,0.7883]
[1758881137677,1.23777,3904.2,3904.1,0.7106]
[1758881138986,1.23777,3904.2,3904.1,0.263]
[1758881139887,0.1338,3904.0,3903.6,0.46073]
[1758881140085,0.2196,3903.9,3903.8,0.7883]
[1758881140889,1.00857,3904.2,3904.1,0.7883]
[1758881141387,0.2196,3903.9,3903.8,0.80141]
[1758881141583,0.2196,3903.9,3903.8,1.51201]
[1758881142082,0.5479,3903.9,3903.8,1.51201]
[1758881142984,0.2196,3903.9,3903.8,1.51201]
[1758881143189,0.5479,3903.9,3903.8,1.51201]
[1758881143686,11.51211,3905.8,3903.8,1.51201]
[1758881143987,1.23775,3904.4,3904.3,0.7883]
[1758881144197,1.23775,3904.4,3904.3,1.0513]
[1758881144488,0.7771,3904.4,3904.3,1.0513]
[1758881146079,0.3283,3904.8,3904.3,0.263]
[1758881146285,0.7771,3904.8,3904.7,0.2238]
[1758881146489,0.7771,3904.4,3904.3,0.7883]
[1758881146686,0.7771,3904.4,3904.3,1.0513]
[1758881148182,0.7771,3904.4,3903.7,0.91742585]
[1758881148183,0.4488,3903.8,3903.5,0.91742585]
[1758881148388,0.1338,3904.0,3903.4,0.2238]
[1758881148389,0.9109,3903.5,3903.4,0.2238]
[1758881148595,0.9109,3903.5,3903.4,0.4868]
[1758881148787,0.46075,3903.6,3903.4,1.0513]
[1758881149097,0.9109,3903.5,3903.4,0.7106]
[1758881149290,0.2196,3903.1,3903.0,0.7883]
[1758881149495,0.7771,3903.1,3903.0,1.0513]
[1758881149796,0.7771,3903.1,3903.0,0.7883]
[1758881149996,0.7771,3903.1,3903.0,1.0513]
[1758881150288,0.7771,3903.1,3903.0,0.7106]
[1758881150597,0.7771,3903.1,3903.0,0.4476]
[1758881150889,0.7771,3903.1,3903.0,0.7106]
[1758881151097,0.7771,3903.1,3903.0,1.0513]
[1758881151690,0.1338,3903.0,3902.6,0.3407]
[1758881151995,0.7771,3902.7,3902.6,0.2238]
[1758881152198,0.7771,3902.7,3902.6,0.4868]
[1758881152388,0.7771,3902.7,3902.6,0.2238]
[1758881152593,0.7771,3902.4,3902.3,0.4476]
[1758881152995,0.3283,3902.3,3901.9,1.71905585]
[1758881153188,0.7771,3902.1,3902.0,0.2238]
[1758881153501,0.4488,3901.7,3901.6,0.7883]
[1758881153799,0.7771,3901.7,3901.6,1.0513]
[1758881154394,0.1338,3902.5,3901.9,0.7883]
[1758881154696,1.04348,3902.5,3902.4,0.4476]
[1758881154900,1.37178,3902.5,3902.4,0.7106]
[1758881155199,1.37178,3902.5,3902.4,0.263]
[1758881155399,0.46096,3901.8,3901.2,0.3407]
[1758881155601,0.5479,3901.4,3901.3,1.51231]
[1758881155899,0.5479,3901.9,3901.8,0.2238]
[1758881156090,0.7771,3901.9,3901.8,0.4868]
[1758881156291,0.4488,3901.6,3901.5,0.5645]
[1758881156491,0.7771,3901.6,3901.5,0.8275]
[1758881156692,1.23808,3901.6,3901.1,0.46103]
[1758881156889,0.5479,3901.5,3901.2,1.06472]
[1758881157092,0.5479,3901.5,3901.4,0.7883]
[1758881159500,0.9109,3901.5,3901.4,0.7883]
[1758881161505,0.1366,3901.0,3900.8,40.8]
[1758881161695,0.89066,3900.9,3900.8,0.214]
[1758881161896,0.2105,3900.5,3900.4,40.2869]
[1758881162094,0.2105,3900.5,3900.4,40.5499]
[1758881162293,1.23128,3900.8,3900.7,0.4394]
[1758881162498,0.3406,3900.4,3900.2,0.214]
[1758881162693,0.5511,3900.4,3900.3,0.7024]
[1758881162905,0.9068,3901.0,3900.9,0.4394]
[1758881163101,0.9068,3901.0,3900.9,0.477]
[1758881163305,0.9068,3901.0,3900.9,0.7024]
[1758881163600,0.9068,3901.0,3900.9,0.477]
[1758881163801,0.7702,3901.0,3900.9,1.0193]
[1758881163998,0.7702,3901.0,3900.9,1.0185]
[1758881164198,0.9068,3901.0,3900.9,0.7016]
[1758881164398,0.9068,3901.0,3900.9,0.7024]
[1758881164805,0.7702,3901.0,3900.9,1.0457]
[1758881165203,0.9046,3901.0,3900.9,0.263]
[1758881166314,0.2297,3900.4,3900.3,0.7844]
[1758881166610,0.5649,3900.4,3900.3,1.0474]
[1758881166807,0.7798,3900.4,3900.3,0.7041]
[1758881167305,0.3352,3900.4,3899.0,0.1314]
[1758881167508,0.1344,3900.5,3899.6,1.0234]
[1758881167509,0.5649,3899.7,3899.6,1.0234]
[1758881168206,0.5649,3899.7,3899.6,0.7844]
[1758881168599,0.5649,3899.7,3899.6,1.0474]
[1758881169109,0.5649,3899.7,3899.6,0.7844]
[1758881169306,0.5649,3899.7,3899.6,1.0474]
[1758881170206,0.7798,3899.7,3899.6,1.0474]
[1758881170406,0.7798,3899.7,3899.0,0.1314]
[1758881170407,0.46123,3899.5,3899.1,0.80456]
[1758881170712,0.4446,3898.8,3898.5,39.982]
[1758881170904,0.7798,3898.6,3898.5,40.3253]
[1758881171106,0.7798,3898.6,3898.5,40.5883]
[1758881171305,0.7798,3898.6,3898.5,0.2215]
[1758881171600,0.4696,3898.5,3898.4,1.24575]
[1758881171805,0.7798,3898.9,3898.8,0.2215]
[1758881172002,0.7798,3898.9,3898.8,0.68281]
[1758881172317,0.7798,3898.9,3898.8,0.4845]
[1758881172515,0.7798,3898.9,3898.8,0.2215]
[1758881172717,0.7798,3898.9,3898.8,0.4845]
[1758881172910,0.46125,3899.3,3898.9,0.46129]
[1758881173214,0.2297,3899.3,3899.2,0.7844]
[1758881173417,0.2297,3899.3,3899.2,1.0474]
[1758881173609,0.7798,3899.3,3899.2,0.4845]
[1758881173909,0.2297,3898.9,3898.8,0.6828]
[1758881174117,0.2297,3898.9,3898.5,0.1263]
[1758881174118,0.4446,3898.6,3898.5,0.5648]
[1758881174414,0.7798,3898.6,3898.5,1.0474]
[1758881175221,0.7798,3898.6,3897.9,0.02565517]
[1758881175222,0.9142,3898.0,3897.9,0.02565517]
[1758881175519,0.1344,3896.5,3896.3,0.44146009]
[1758881175818,0.59593,3897.0,3896.5,0.3433]
[1758881176024,0.3352,3897.3,3896.7,0.46155]
[1758881176333,0.1344,3898.0,3896.5,0.1263]
[1758881176513,0.46147,3897.5,3896.6,0.265]
[1758881176819,0.1344,3898.0,3897.1,0.3433]
[1758881176820,0.79665,3897.7,3897.1,0.3433]
[1758881177017,0.46145,3897.7,3897.0,0.1263]
[1758881177217,0.46145,3897.7,3896.3,0.78476009]
[1758881177218,8.7768331,3897.7,3896.3,0.78476009]
[1758881177416,0.46152,3897.0,3896.5,0.1263]
[1758881177619,0.3352,3897.4,3896.6,0.3433]
[1758881177821,0.79668,3897.4,3896.6,0.3433]
[1758881178012,0.931,3898.0,3897.0,0.1263]
[1758881178215,0.1344,3898.0,3897.6,0.3433]
[1758881178527,0.3352,3897.9,3897.7,0.6103]
[1758881178716,0.3352,3897.8,3897.7,0.3433]
[1758881179022,0.3352,3898.4,3897.7,0.6103]
[1758881179216,0.3352,3898.4,3897.8,0.267]
[1758881179824,0.46139,3898.2,3897.9,0.267]
[1758881180018,0.3352,3898.0,3897.9,0.267]
[1758881180411,0.5958,3898.0,3897.9,0.266]
[1758881180616,0.931,3898.0,3897.9,0.266]
[1758881180816,0.46145,3897.6,3897.1,40.8]
[1758881181017,0.46147,3897.5,3897.2,40.27]
[1758881181213,0.3352,3897.4,3897.2,40.6133]
[1758881181414,0.1344,3898.0,3896.8,0.3433]
[1758881181617,0.1344,3898.0,3896.3,0.44146009]
[1758881181618,0.3352,3896.8,3896.4,0.3433]
[1758881181919,0.46158,3896.5,3896.3,0.44146009]
[1758881182121,0.3352,3896.4,3896.3,0.44146009]
[1758881182318,0.3352,3896.9,3896.3,1.05176009]
[1758881182514,0.4696,3897.0,3896.4,0.3433]
[1758881183019,0.4696,3897.0,3896.6,0.46156]
[1758881183227,0.3352,3896.9,3896.7,0.267]
[1758881183425,0.3352,3896.9,3896.8,0.267]
[1758881184922,0.3352,3897.4,3896.8,0.6103]
[1758881185127,0.3352,3897.9,3897.3,0.46148]
[1758881185326,0.79663,3897.8,3897.4,0.267]